fUSD/lending_fUSD_20260112
["ID","MTS","AMOUNT","RATE_DAILY","PERIOD"]
[401422886,1768201847883,-150.0,0.0001755,2]
[401422888,1768201847893,-150.0,0.0001755,2]
[401422890,1768201847903,-150.0,0.0001755,2]
[401422893,1768201847917,-150.0,0.0001755,2]
[401422895,1768201847927,-150.0,0.0001755,2]
[401422897,1768201847938,-331.18764993,0.00017564,2]
[401422899,1768201847947,-1364.0,0.00017566,2]
[401422901,1768201847958,-331.18764993,0.00017582,2]
[401422903,1768201847968,-150.0,0.00017585,2]
[401422905,1768201847978,-28047.0,0.00017589,2]
[401422907,1768201847988,-1073.4,0.00017595,2]
[401422909,1768201847998,-2987.79350316,0.00017598,2]
[401422912,1768201848009,-1000.0,0.000176,2]
[401422914,1768201848020,-331.18764993,0.000176,2]
[401422916,1768201848031,-150.0,0.000176,2]
[401422918,1768201848041,-1100.0,0.000176,6]
[401422920,1768201848051,-150.0,0.00017614,2]
[401422922,1768201848061,-150698.32745844,0.00017615,2]
[401422924,1768201848072,-1000.0,0.00017618,2]
[401422926,1768201848082,-331.18764993,0.00017618,2]
[401422928,1768201848092,-501.81552952,0.00017621,2]
[401422931,1768201848103,-1002.68294103,0.00017621,2]
[401422933,1768201848112,-604.83613644,0.00017621,2]
[401422935,1768201848121,-1001.39881462,0.00017621,2]
[401422937,1768201848131,-1001.49774725,0.00017621,2]
[401422939,1768201848141,-615.72392014,0.00017621,2]
[401422941,1768201848151,-1000.0,0.00017621,2]
[401422943,1768201848161,-1000.0,0.00017621,2]
[401422945,1768201848171,-1001.98142269,0.00017621,2]
[401422947,1768201848182,-502.50985622,0.00017621,2]
[401422949,1768201848192,-1000.0,0.00017621,2]
[401422951,1768201848202,-1000.0,0.00017621,2]
[401422954,1768201848214,-1000.0,0.00017621,2]
[401422956,1768201848223,-1000.0,0.00017621,2]
[401422958,1768201848233,-1000.0,0.00017621,2]
[401422960,1768201848242,-1000.0,0.00017621,2]
[401422962,1768201848252,-262.49854168,0.00017622,2]
[401422964,1768201848262,-245142.12314308,0.00017623,2]
[401422966,1768201848272,-346213.84170463,0.00017623,2]
[401422968,1768201848282,-447993.414,0.00017623,2]
[401422970,1768201848296,-150.0,0.00017625,2]
[401422972,1768201848306,-150.0,0.00017625,2]
[401422974,1768201848316,-1000.0,0.00017634,2]
[401422976,1768201848325,-1000.0,0.00017634,2]
[401422978,1768201848335,-331.18764993,0.00017636,2]
[401422980,1768201848345,-150.0,0.0001764,2]
[401422983,1768201848355,-150.0,0.0001764,2]
[401422985,1768201848365,-2526.34474309,0.0001764,2]
[401422987,1768201848376,-553.64373807,0.00017647,2]
[401422989,1768201848386,-151.0,0.00017647,2]
[401422991,1768201848396,-331.18764993,0.00017655,2]
[401422993,1768201848406,-150.0,0.00017662,2]
[401422995,1768201848416,-150.0,0.00017662,2]
[401422997,1768201848425,-331.18764993,0.00017673,2]
[401422999,1768201848437,-2987.79350316,0.00017674,2]
[401423001,1768201848447,-331.18764993,0.00017691,2]
[401423003,1768201848456,-1073.4,0.00017696,2]
[401423005,1768201848466,-150.0,0.000177,2]
[401423008,1768201848476,-150.0,0.000177,2]
[401423010,1768201848486,-4307.04643237,0.000177,2]
[401423012,1768201848496,-1100.0,0.000177,6]
[401423014,1768201848506,-235.1,0.00017705,2]
[401423016,1768201848516,-1000.0,0.00017709,2]
[401423018,1768201848525,-317.89217191,0.00017709,2]
[401423020,1768201848535,-331.18764993,0.00017709,2]
[401423022,1768201848545,-150.0,0.00017723,2]
[401423024,1768201848554,-331.18764993,0.00017727,2]
[401423026,1768201848564,-150.0,0.0001773,2]
[401423028,1768201848574,-510.98377513,0.0001773,2]
[401423030,1768201848584,-150.0,0.00017743,2]
[401423032,1768201848593,-150.0,0.00017743,2]
[401423034,1768201848603,-331.18764993,0.00017745,2]
[401423036,1768201848613,-2987.79350316,0.00017749,2]
[401423038,1768201848623,-1000.0,0.00017752,2]
[401423040,1768201848632,-150.0,0.0001776,2]
[401423042,1768201848641,-331.18764993,0.00017764,2]
[401423044,1768201848652,-150.0,0.00017775,2]
[401423045,1768201848661,-150.0,0.00017775,2]
[401423046,1768201848673,-150.0,0.00017775,2]
[401423047,1768201848682,-150.0,0.00017775,2]
[401423048,1768201848691,-331.18764993,0.00017782,2]
[401423049,1768201848700,-1073.4,0.00017797,2]
[401423050,1768201848710,-331.18764993,0.000178,2]
[401423051,1768201848720,-150.0,0.000178,2]
[401423063,1768201848839,-1198.0,0.000178,2]
[401423065,1768201848849,-1100.0,0.000178,6]
[401423067,1768201848860,-156.587,0.00017807,2]
[401423069,1768201848870,-150.67981664,0.00017808,2]
[401423071,1768201848880,-331.18764993,0.00017818,2]
[401423073,1768201848889,-150.0,0.0001782,2]
[401423075,1768201848899,-1404.3521,0.0001782,2]
[401423077,1768201848909,-1404.35211,0.0001782,2]
[401423079,1768201848918,-910.24842296,0.0001782,2]
[401423081,1768201848928,-2987.79350316,0.00017825,2]
[401423083,1768201848937,-25000.0,0.0001783,3]
[401423085,1768201848947,-83171.52894996,0.0001783,2]
[401423087,1768201848956,-151.0,0.0001783,2]
[401423089,1768201848966,-874.374949,0.0001783,2]
[401423092,1768201848976,-151.0,0.0001783,2]
[401423093,1768201848985,-151.0,0.0001783,2]
[401423096,1768201848996,-874.374949,0.0001783,2]
[401423098,1768201849006,-874.374949,0.0001783,2]
[401423100,1768201849015,-874.374949,0.0001783,2]
[401423102,1768201849025,-151.0,0.0001783,2]
[401423104,1768201849035,-151.0,0.0001783,2]
[401423106,1768201849044,-151.0,0.0001783,2]
[401423108,1768201849052,-151.0,0.0001783,2]
[401423110,1768201849062,-151.0,0.0001783,2]
[401423112,1768201849071,-151.0,0.0001783,2]
[401423114,1768201849080,-151.0,0.0001783,2]
[401423116,1768201849090,-151.0,0.0001783,2]
[401423118,1768201849100,-151.0,0.0001783,2]
[401423120,1768201849109,-151.0,0.0001783,2]
[401423122,1768201849119,-268.270545,0.0001783,2]
[401423124,1768201849130,-268.270545,0.0001783,2]
[401423126,1768201849139,-268.270545,0.0001783,2]
[401423128,1768201849149,-268.270545,0.0001783,2]
[401423130,1768201849160,-378.862944,0.0001783,2]
[401423132,1768201849169,-199.646617,0.0001783,2]
[401423134,1768201849179,-703.58973,0.0001783,2]
[401423136,1768201849189,-378.862944,0.0001783,2]
[401423138,1768201849198,-406.875021,0.0001783,2]
[401423140,1768201849207,-199.646617,0.0001783,2]
[401423142,1768201849216,-703.58973,0.0001783,2]
[401423144,1768201849226,-193.153439,0.0001783,2]
[401423146,1768201849236,-199.646617,0.0001783,2]
[401423148,1768201849245,-406.875021,0.0001783,2]
[401423150,1768201849255,-703.58973,0.0001783,2]
[401423152,1768201849264,-193.153439,0.0001783,2]
[401423154,1768201849274,-199.646617,0.0001783,2]
[401423156,1768201849283,-406.875021,0.0001783,2]
[401423158,1768201849295,-378.862944,0.0001783,2]
[401423160,1768201849305,-703.58973,0.0001783,2]
[401423162,1768201849314,-193.153439,0.0001783,2]
[401423164,1768201849323,-406.875021,0.0001783,2]
[401423166,1768201849332,-151.0,0.0001783,2]
[401423168,1768201849342,-506.307155,0.0001783,2]
[401423170,1768201849351,-378.862944,0.0001783,2]
[401423172,1768201849360,-193.153439,0.0001783,2]
[401423174,1768201849369,-151.0,0.0001783,2]
[401423176,1768201849378,-506.307155,0.0001783,2]
[401423178,1768201849387,-506.307155,0.0001783,2]
[401423180,1768201849397,-323.444424,0.0001783,2]
[401423182,1768201849406,-323.444424,0.0001783,2]
[401423184,1768201849416,-323.444424,0.0001783,2]
[401423186,1768201849426,-506.307155,0.0001783,2]
[401423188,1768201849436,-151.0,0.0001783,2]
[401423190,1768201849446,-1404.3521,0.0001783,2]
[401423193,1768201849455,-323.444424,0.0001783,2]
[401423195,1768201849464,-151.0,0.0001783,2]
[401423196,1768201849473,-311.163043,0.0001783,2]
[401423199,1768201849483,-311.163043,0.0001783,2]
[401423201,1768201849492,-311.163043,0.0001783,2]
[401423203,1768201849501,-311.163043,0.0001783,2]
[401423205,1768201849510,-1088.696282,0.0001783,2]
[401423207,1768201849519,-866.607694,0.0001783,2]
[401423209,1768201849528,-151.0,0.0001783,2]
[401423211,1768201849537,-1088.696282,0.0001783,2]
[401423213,1768201849546,-866.607694,0.0001783,2]
[401423214,1768201849555,-151.0,0.0001783,2]
[401423217,1768201849564,-1088.696282,0.0001783,2]
[401423218,1768201849573,-866.607694,0.0001783,2]
[401423220,1768201849583,-1088.696282,0.0001783,2]
[401423222,1768201849592,-777.804847,0.0001783,2]
[401423224,1768201849602,-866.607694,0.0001783,2]
[401423226,1768201849611,-151.0,0.0001783,2]
[401423227,1768201849620,-777.804847,0.0001783,2]
[401423229,1768201849630,-151.0,0.0001783,2]
[401423231,1768201849639,-151.0,0.0001783,2]
[401423232,1768201849649,-199.367871,0.0001783,2]
[401423234,1768201849660,-777.804847,0.0001783,2]
[401423236,1768201849674,-404.421894,0.0001783,2]
[401423238,1768201849683,-777.804847,0.0001783,2]
[401423239,1768201849692,-404.421894,0.0001783,2]
[401423241,1768201849701,-404.421894,0.0001783,2]
[401423243,1768201849710,-151.0,0.0001783,2]
[401423244,1768201849720,-404.421894,0.0001783,2]
[401423246,1768201849729,-151.0,0.0001783,2]
[401423248,1768201849739,-2544.397561,0.0001783,2]
[401423249,1768201849749,-2544.397561,0.0001783,2]
[401423251,1768201849759,-2544.397561,0.0001783,2]
[401423253,1768201849768,-2544.397561,0.0001783,2]
[401423254,1768201849777,-876.570737,0.0001783,2]
[401423256,1768201849787,-876.570737,0.0001783,2]
[401423258,1768201849796,-380.423287,0.0001783,2]
[401423260,1768201849805,-876.570737,0.0001783,2]
[401423261,1768201849815,-380.423287,0.0001783,2]
[401423263,1768201849824,-876.570737,0.0001783,2]
[401423265,1768201849833,-380.423287,0.0001783,2]
[401423267,1768201849843,-380.423287,0.0001783,2]
[401423269,1768201849852,-329.021696,0.0001783,2]
[401423270,1768201849861,-258.065145,0.0001783,2]
[401423272,1768201849870,-1767.548746,0.0001783,2]
[401423274,1768201849879,-329.021696,0.0001783,2]
[401423276,1768201849889,-151.0,0.0001783,2]
[401423277,1768201849899,-258.065145,0.0001783,2]
[401423279,1768201849908,-970.748749,0.0001783,2]
[401423281,1768201849918,-151.0,0.0001783,2]
[401423283,1768201849928,-1767.548746,0.0001783,2]
[401423284,1768201849938,-949.908812,0.0001783,2]
[401423286,1768201849948,-329.021696,0.0001783,2]
[401423288,1768201849958,-151.0,0.0001783,2]
[401423289,1768201849968,-258.065145,0.0001783,2]
[401423291,1768201849978,-970.748749,0.0001783,2]
[401423293,1768201849988,-1767.548746,0.0001783,2]
[401423295,1768201849997,-949.908812,0.0001783,2]
[401423297,1768201850008,-329.021696,0.0001783,2]
[401423299,1768201850018,-151.0,0.0001783,2]
[401423300,1768201850027,-258.065145,0.0001783,2]
[401423302,1768201850037,-970.748749,0.0001783,2]
[401423304,1768201850046,-1767.548746,0.0001783,2]
[401423306,1768201850056,-949.908812,0.0001783,2]
[401423308,1768201850066,-970.748749,0.0001783,2]
[401423309,1768201850075,-949.908812,0.0001783,2]
[401423311,1768201850085,-151.0,0.0001783,2]
[401423313,1768201850094,-151.0,0.0001783,2]
[401423315,1768201850104,-151.0,0.0001783,2]
[401423317,1768201850114,-2696.745961,0.0001783,2]
[401423318,1768201850123,-151.0,0.0001783,2]
[401423320,1768201850132,-2696.745961,0.0001783,2]
[401423322,1768201850141,-202.183274,0.0001783,2]
[401423324,1768201850150,-151.0,0.0001783,2]
[401423326,1768201850159,-202.183274,0.0001783,2]
[401423327,1768201850168,-1564.68783,0.0001783,2]
[401423329,1768201850177,-2696.745961,0.0001783,2]
[401423331,1768201850186,-151.0,0.0001783,2]
[401423333,1768201850195,-202.183274,0.0001783,2]
[401423335,1768201850205,-1564.68783,0.0001783,2]
[401423337,1768201850214,-2696.745961,0.0001783,2]
[401423338,1768201850223,-202.183274,0.0001783,2]
[401423340,1768201850233,-1564.68783,0.0001783,2]
[401423342,1768201850242,-1564.68783,0.0001783,2]
[401423344,1768201850251,-151.0,0.0001783,2]
[401423346,1768201850260,-151.0,0.0001783,2]
[401423348,1768201850269,-151.0,0.0001783,2]
[401423350,1768201850279,-536.096762,0.0001783,2]
[401423351,1768201850288,-536.096762,0.0001783,2]
[401423353,1768201850297,-536.096762,0.0001783,2]
[401423355,1768201850306,-585.678073,0.0001783,2]
[401423357,1768201850315,-536.096762,0.0001783,2]
[401423359,1768201850324,-585.678073,0.0001783,2]
[401423361,1768201850334,-585.678073,0.0001783,2]
[401423362,1768201850344,-585.678073,0.0001783,2]
[401423364,1768201850353,-151.0,0.0001783,2]
[401423366,1768201850363,-156.283737,0.0001783,2]
[401423368,1768201850372,-4431.472038,0.0001783,2]
[401423370,1768201850381,-2704.225356,0.0001783,2]
[401423371,1768201850390,-402.021243,0.0001783,2]
[401423373,1768201850399,-4431.472038,0.0001783,2]
[401423375,1768201850408,-151.0,0.0001783,2]
[401423377,1768201850417,-1594.507081,0.0001783,2]
[401423379,1768201850426,-297.170586,0.0001783,2]
[401423381,1768201850436,-402.021243,0.0001783,2]
[401423382,1768201850445,-4431.472038,0.0001783,2]
[401423384,1768201850454,-151.0,0.0001783,2]
[401423386,1768201850463,-1594.507081,0.0001783,2]
[401423388,1768201850472,-402.021243,0.0001783,2]
[401423390,1768201850480,-297.170586,0.0001783,2]
[401423391,1768201850489,-4431.472038,0.0001783,2]
[401423393,1768201850499,-1594.507081,0.0001783,2]
[401423395,1768201850508,-402.021243,0.0001783,2]
[401423397,1768201850517,-878.078272,0.0001783,2]
[401423398,1768201850526,-297.170586,0.0001783,2]
[401423400,1768201850535,-1594.507081,0.0001783,2]
[401423402,1768201850545,-878.078272,0.0001783,2]
[401423404,1768201850554,-297.170586,0.0001783,2]
[401423406,1768201850563,-878.078272,0.0001783,2]
[401423407,1768201850572,-878.078272,0.0001783,2]
[401423409,1768201850581,-151.0,0.0001783,2]
[401423411,1768201850590,-2704.225356,0.0001783,2]
[401423413,1768201850599,-186.727246,0.0001783,2]
[401423415,1768201850608,-151.0,0.0001783,2]
[401423417,1768201850618,-2704.225356,0.0001783,2]
[401423418,1768201850627,-1680.772685,0.0001783,2]
[401423420,1768201850636,-1159.429831,0.0001783,2]
[401423422,1768201850646,-186.727246,0.0001783,2]
[401423424,1768201850655,-2704.225356,0.0001783,2]
[401423426,1768201850664,-1680.772685,0.0001783,2]
[401423428,1768201850677,-501.106021,0.0001783,2]
[401423430,1768201850686,-1159.429831,0.0001783,2]
[401423431,1768201850695,-186.727246,0.0001783,2]
[401423432,1768201850704,-501.106021,0.0001783,2]
[401423433,1768201850714,-1680.772685,0.0001783,2]
[401423434,1768201850723,-1159.429831,0.0001783,2]
[401423435,1768201850732,-1668.181417,0.0001783,2]
[401423436,1768201850742,-186.727246,0.0001783,2]
[401423437,1768201850751,-501.106021,0.0001783,2]
[401423438,1768201850760,-1680.772685,0.0001783,2]
[401423439,1768201850769,-1159.429831,0.0001783,2]
[401423440,1768201850778,-1668.181417,0.0001783,2]
[401423441,1768201850787,-1668.181417,0.0001783,2]
[401423442,1768201850798,-501.106021,0.0001783,2]
[401423443,1768201850807,-2139.417501,0.0001783,2]
[401423445,1768201850816,-1668.181417,0.0001783,2]
[401423446,1768201850825,-2139.417501,0.0001783,2]
[401423448,1768201850834,-2139.417501,0.0001783,2]
[401423450,1768201850843,-151.0,0.0001783,2]
[401423452,1768201850852,-897.996354,0.0001783,2]
[401423454,1768201850861,-2277.167351,0.0001783,2]
[401423455,1768201850870,-2139.417501,0.0001783,2]
[401423456,1768201850879,-897.996354,0.0001783,2]
[401423457,1768201850888,-2277.167351,0.0001783,2]
[401423458,1768201850896,-2277.167351,0.0001783,2]
[401423459,1768201850905,-2277.167351,0.0001783,2]
[401423460,1768201850915,-897.996354,0.0001783,2]
[401423461,1768201850924,-897.996354,0.0001783,2]
[401423462,1768201850933,-170.068889,0.0001783,2]
[401423463,1768201850943,-170.068889,0.0001783,2]
[401423464,1768201850952,-170.068889,0.0001783,2]
[401423466,1768201850961,-170.068889,0.0001783,2]
[401423468,1768201850971,-325.126375,0.0001783,2]
[401423470,1768201850981,-325.126375,0.0001783,2]
[401423472,1768201850989,-325.126375,0.0001783,2]
[401423473,1768201850999,-325.126375,0.0001783,2]
[401423474,1768201851007,-331.18764993,0.00017836,2]
[401423475,1768201851017,-500.0,0.00017838,2]
[401423476,1768201851027,-25000.0,0.00017838,3]
[401423477,1768201851036,-25000.0,0.00017847,3]
[401423478,1768201851046,-150.0,0.0001785,2]
[401423480,1768201851055,-150.0,0.0001785,2]
[401423481,1768201851065,-150.0,0.0001785,2]
[401423482,1768201851073,-331.18764993,0.00017855,2]
[401423483,1768201851082,-200.0,0.00017855,2]
[401423484,1768201851091,-25000.0,0.00017856,3]
[401423485,1768201851100,-200.0,0.00017856,2]
[401423486,1768201851109,-1404.35211,0.0001786,2]
[401423487,1768201851119,-150.0,0.00017862,2]
[401423488,1768201851128,-25000.0,0.00017865,3]
[401423489,1768201851137,-150.0,0.00017871,2]
[401423490,1768201851146,-331.18764993,0.00017873,2]
[401423491,1768201851156,-25000.0,0.00017874,3]
[401423492,1768201851165,-150.0,0.0001788,2]
[401423493,1768201851174,-1404.35211,0.0001788,2]
[401423494,1768201851183,-25000.0,0.00017882,3]
[401423495,1768201851193,-150.0,0.00017887,2]
[401423496,1768201851202,-150.0,0.00017887,2]
[401423497,1768201851212,-331.18764993,0.00017891,2]
[401423498,1768201851221,-25000.0,0.00017891,3]
[401423499,1768201851231,-1252.0,0.00017898,2]
[401423500,1768201851240,-500.0,0.00017899,2]
[401423501,1768201851249,-1073.4,0.00017899,2]
[401423502,1768201851258,-8365.1305,0.000179,2]
[401423503,1768201851267,-25000.0,0.000179,3]
[401423504,1768201851277,-1054.4366,0.000179,2]
[401423505,1768201851286,-4831.1649,0.000179,2]
[401423506,1768201851295,-925.98385699,0.000179,2]
[401423507,1768201851304,-10180.70758026,0.000179,2]
[401423508,1768201851313,-1218.18097026,0.000179,2]
[401423509,1768201851323,-1218.18097026,0.000179,2]
[401423510,1768201851332,-1218.18097026,0.000179,2]
[401423511,1768201851341,-317.89217191,0.000179,2]
[401423512,1768201851351,-1218.18097026,0.000179,2]
[401423513,1768201851360,-1218.18097026,0.000179,2]
[401423514,1768201851369,-1218.18097026,0.000179,2]
[401423515,1768201851388,-1638.0,0.000179,6]
[401423516,1768201851407,-1218.18097026,0.000179,2]
[401423517,1768201851422,-1218.18097026,0.000179,2]
[401423518,1768201851432,-1218.18097026,0.000179,2]
[401423519,1768201851445,-14981.27545297,0.000179,3]
[401423520,1768201851453,-718.34267946,0.000179,3]
[401423521,1768201851463,-2987.79350316,0.000179,2]
[401423522,1768201851472,-11536.32618384,0.000179,2]
[401423523,1768201851482,-6270.88845105,0.000179,2]
[401423524,1768201851491,-331.18764993,0.00017909,2]
[401423525,1768201851501,-150.0,0.0001791,2]
[401423526,1768201851511,-1404.35211,0.0001791,2]
[401423527,1768201851523,-150.0,0.00017925,2]
[401423528,1768201851533,-150.0,0.00017925,2]
[401423529,1768201851542,-331.18764993,0.00017927,2]
[401423530,1768201851551,-331.18764993,0.00017945,2]
[401423531,1768201851560,-331.18764993,0.00017964,2]
[401423532,1768201851569,-500.0,0.00017973,2]
[401423533,1768201851579,-498.39272947,0.00017973,2]
[401423534,1768201851587,-500.0,0.00017973,2]
[401423535,1768201851598,-644.05438872,0.00017973,2]
[401423536,1768201851607,-501.12911319,0.00017973,2]
[401423537,1768201851617,-502.23302881,0.00017973,2]
[401423538,1768201851626,-381.34584895,0.00017973,2]
[401423539,1768201851635,-501.78685961,0.00017973,2]
[401423540,1768201851645,-503.85916191,0.00017973,2]
[401423541,1768201851654,-503.67264874,0.00017973,2]
[401423542,1768201851664,-500.55153068,0.00017973,2]
[401423543,1768201851676,-501.47661499,0.00017973,2]
[401423544,1768201851685,-501.10571804,0.00017973,2]
[401423545,1768201851695,-501.38258594,0.00017973,2]
[401423546,1768201851704,-515.69548792,0.00017973,2]
[401423547,1768201851715,-502.86808452,0.00017973,2]
[401423548,1768201851724,-500.0,0.00017973,2]
[401423549,1768201851734,-500.0,0.00017973,2]
[401423550,1768201851745,-153.49935164,0.00017973,2]
[401423551,1768201851755,-150.0,0.0001798,2]
[401423552,1768201851763,-265.0,0.0001798,2]
[401423553,1768201851772,-213.0,0.0001798,2]
[401423554,1768201851781,-200.0,0.0001798,2]
[401423555,1768201851790,-194.425,0.0001798,2]
[401423556,1768201851799,-250.0,0.0001798,2]
[401423557,1768201851809,-226.708,0.0001798,2]
[401423558,1768201851817,-211.999,0.0001798,2]
[401423559,1768201851826,-250.0,0.0001798,2]
[401423560,1768201851835,-157.467,0.0001798,2]
[401423561,1768201851845,-190.963,0.0001798,2]
[401423562,1768201851854,-163.847,0.0001798,2]
[401423563,1768201851863,-212.004,0.0001798,2]
[401423564,1768201851872,-250.0,0.0001798,2]
[401423565,1768201851881,-169.0,0.0001798,2]
[401423566,1768201851892,-229.743,0.0001798,2]
[401423567,1768201851901,-331.18764993,0.00017982,2]
[401423568,1768201851911,-152.92662848,0.00017982,2]
[401423569,1768201851920,-500.0,0.00017982,2]
[401423570,1768201851929,-1047.04298225,0.0001799,2]
[401423571,1768201851939,-1047.04298225,0.0001799,2]
[401423572,1768201851949,-14302.37222232,0.00017999,2]
[401423573,1768201851958,-300.0,0.00017999,2]
[401423574,1768201851967,-500.0,0.00017999,2]
[401423575,1768201851977,-500.0,0.00017999,2]
[401423576,1768201851986,-500.0,0.00017999,2]
[401423577,1768201851995,-500.0,0.00017999,2]
[401423578,1768201852004,-500.0,0.00017999,2]
[401423579,1768201852013,-500.0,0.00017999,2]
[401423580,1768201852022,-456.07319796,0.00017999,2]
[401423581,1768201852032,-300.0,0.00017999,2]
[401423582,1768201852043,-673.04563665,0.00017999,2]
[401423583,1768201852052,-666.0,0.00017999,2]
[401423584,1768201852061,-300.0,0.00017999,2]
[401423585,1768201852070,-300.0,0.00017999,2]
[401423586,1768201852080,-300.0,0.00017999,2]
[401423587,1768201852098,-666.0,0.00017999,2]
[401423588,1768201852109,-154.38953807,0.00018,2]
[401423589,1768201852119,-263.65847092,0.00018,2]
[401423590,1768201852128,-156.71525667,0.00018,2]
[401423591,1768201852139,-331.18764993,0.00018,2]
[401423592,1768201852148,-155.07098725,0.00018,2]
[401423593,1768201852157,-155.70825827,0.00018,2]
[401423594,1768201852167,-150.00000001,0.00018,2]
[401423595,1768201852177,-151.45444701,0.00018,2]
[401423596,1768201852186,-152.37123583,0.00018,2]
[401423597,1768201852196,-248.59699216,0.00018,2]
[401423598,1768201852205,-152.34445976,0.00018,2]
[401423599,1768201852215,-154.70586823,0.00018,2]
[401423600,1768201852224,-4483690.38224823,0.00018,2]
[401423601,1768201855232,-151.0,0.00014206,2]
[401423602,1768201855242,-1136.47500001,0.00018,2]
[401423603,1768201855292,-0.81362469,0.00014206,2]
[401423604,1768201855303,-150.18637531,0.00014206,2]
[401423605,1768201855312,-190.85362469,0.00018,2]
[401423606,1768201855323,-45125.0,0.00018,2]
[401423607,1768201855481,-500.0,0.00017492,2]
[401423608,1768201855493,-66.0,0.00017492,2]
[401423609,1768201855502,-239.72258863,0.00018,2]
[401423610,1768201855514,-4069.35546928,0.00018,2]
[401423611,1768201855548,-374.09274648,0.00018,2]
[401423612,1768201855642,-310.546,0.00018,2]
[401423613,1768201855655,-581.45672485,0.00018,2]
[401423614,1768201855668,-8731.87115927,0.00018,2]
[401423615,1768201855681,-1963.25480074,0.00018,2]
[401423616,1768201855693,-965.31631422,0.00018,2]
[401423617,1768201855705,-604.0,0.00018,2]
[401423618,1768201855719,-1235.51389137,0.00018,2]
[401423619,1768201904081,10000.01,0.00012754,2]
[401423620,1768201904105,10000.01,0.00012754,2]
[401423621,1768201904133,10000.01,0.00012754,2]
[401423622,1768201904160,10000.01,0.00012754,2]
[401423623,1768201904185,6944.58,0.00012754,2]
[401423624,1768201910277,3055.43,0.00012815,2]
[401423625,1768201910302,10000.01,0.00012815,2]
[401423626,1768201910328,10000.01,0.00012815,2]
[401423627,1768201910354,8779.6979,0.00012815,2]
[401423628,1768201927666,1220.3121,0.00012815,2]
[401423629,1768201927703,10000.01,0.00012815,2]
[401423630,1768201927735,10000.01,0.00012815,2]
[401423631,1768201928855,-500.0,0.00012814,2]
[401423632,1768201928882,-1396.24036929,0.00012815,2]
[401423633,1768201930488,-168.97270751,0.00012814,2]
[401423634,1768201933132,-278.10463043,0.00012814,2]
[401423635,1768201934616,-52.92266206,0.00012814,2]
[401423636,1768201934645,-155.559821,0.00012814,2]
[401423637,1768201935974,-256.0,0.00012814,2]
[401423638,1768201937900,-88.440179,0.00012814,2]
[401423639,1768201937928,-154.70347521,0.00012814,2]
[401423640,1768201941837,-251.85634579,0.00012814,2]
[401423641,1768201943869,-93.440179,0.00012814,2]
[401423642,1768201943898,-236.00883745,0.00012814,2]
[401423643,1768201950419,-213.77511729,0.00012814,2]
[401423644,1768201953096,-50.21604526,0.00012814,2]
[401423645,1768201953122,-102.02551662,0.00012814,2]
[401423646,1768201955718,-216.0729742,0.00012814,2]
[401423647,1768201957892,-181.90150918,0.00012814,2]
[401423648,1768201957925,-112.02198778,0.00012814,2]
[401423649,1768201959435,-349.72397866,0.00012814,2]
[401423650,1768201963137,-38.25403356,0.00012814,2]
[401423651,1768201963166,-285.63619338,0.00012814,2]
[401423652,1768201964774,-214.36380662,0.00012814,2]
[401423653,1768201964811,-500.0,0.00012814,2]
[401423654,1768201964847,-500.0,0.00012814,2]
[401423655,1768201964881,-500.0,0.00012814,2]
[401423656,1768201964917,-500.0,0.00012814,2]
[401423657,1768201964952,-500.0,0.00012814,2]
[401423658,1768201964987,-500.0,0.00012814,2]
[401423659,1768201965342,-500.0,0.00012814,2]
[401423660,1768201965377,-500.0,0.00012814,2]